bitfinex-derivatives/quotes_BTCF0:USTF0_20250906
["timestamp","ask_amount","ask_price","bid_price","bid_amount"]
[1757117691943,0.39327016,110770.0,110760.0,0.7053571]
[1757117692133,0.39327016,110770.0,110760.0,0.75563013]
[1757117693141,0.39427016,110770.0,110760.0,0.75563013]
[1757117693945,0.39527016,110770.0,110760.0,0.75563013]
[1757117699442,0.39527016,110770.0,110760.0,0.38289004]
[1757117700942,0.0021,110770.0,110760.0,0.77123515]
[1757117701137,0.0021,110770.0,110760.0,1.02123515]
[1757117702143,0.0021,110770.0,110760.0,1.03017586]
[1757117703344,0.0001,110770.0,110760.0,1.03017586]
[1757117704235,0.0001,110770.0,110760.0,1.84817586]
[1757117705638,0.0001,110770.0,110760.0,2.20897586]
[1757117710549,0.0001,110770.0,110760.0,1.39097586]
[1757117710743,0.0001,110770.0,110760.0,2.20889586]
[1757117716154,0.0001,110770.0,110760.0,1.39097586]
[1757117716341,0.0001,110770.0,110760.0,2.20881586]
[1757117716754,0.0001,110770.0,110760.0,1.39097586]
[1757117717051,0.0001,110770.0,110760.0,2.20881586]
[1757117717253,0.0001,110770.0,110760.0,1.39097586]
[1757117717454,0.0001,110770.0,110760.0,2.20881586]
[1757117718958,0.0001,110770.0,110760.0,2.20881586]
[1757117721659,0.0001,110770.0,110760.0,0.78590113]
[1757117721859,0.0001,110770.0,110760.0,1.38203515]
[1757117722764,0.0001,110770.0,110760.0,1.39118487]
[1757117726457,0.0001,110770.0,110760.0,1.50475136]
[1757117727357,0.0001,110770.0,110760.0,1.39118487]
[1757117727861,0.0001,110770.0,110760.0,1.50475136]
[1757117730764,0.0001,110770.0,110760.0,1.25475136]
[1757117730965,0.0001,110770.0,110760.0,1.14118487]
[1757117732165,0.39114413,110790.0,110780.0,0.03627]
[1757117732360,0.39114413,110790.0,110780.0,0.33433701]
[1757117732561,0.36987413,110790.0,110780.0,0.33433701]
[1757117733166,0.39114413,110790.0,110780.0,0.33433701]
[1757117733770,0.39214413,110790.0,110780.0,0.33433701]
[1757117734272,0.39314413,110790.0,110780.0,0.33433701]
[1757117736068,0.39314413,110790.0,110780.0,1.15209701]
[1757117740068,0.39314413,110790.0,110780.0,1.15205701]
[1757117740771,0.39314413,110790.0,110780.0,0.33433701]
[1757117740962,0.39314413,110790.0,110780.0,1.15205701]
[1757117741469,0.39314413,110790.0,110780.0,0.33433701]
[1757117744974,0.03234413,110790.0,110780.0,0.33433701]
[1757117745168,0.39314413,110790.0,110780.0,0.33433701]
[1757117751167,0.39314413,110790.0,110780.0,0.08654303]
[1757117751168,0.64314413,110790.0,110780.0,0.08654303]
[1757117751366,0.64324413,110790.0,110780.0,0.08654303]
[1757117758166,0.94654114,110790.0,110770.0,0.01334]
[1757117758376,0.38205,110780.0,110770.0,0.08692303]
[1757117758576,0.38215,110780.0,110770.0,0.08682303]
[1757117758776,0.38215,110780.0,110760.0,0.01358]
[1757117758777,1.75745701,110780.0,110760.0,0.01358]
[1757117758970,0.38205,110770.0,110760.0,0.08716303]
[1757117759169,0.38215,110770.0,110760.0,0.08706303]
[1757117759582,0.71755829,110770.0,110760.0,0.42247132]
[1757117760064,0.38215,110770.0,110760.0,0.42247132]
[1757117760268,0.71755829,110770.0,110760.0,0.42347132]
[1757117761070,0.38215,110770.0,110760.0,0.42547132]
[1757117770878,0.71755829,110770.0,110760.0,0.42547132]
[1757117774985,1.07835829,110770.0,110760.0,0.42547132]
[1757117782981,0.7217,110770.0,110760.0,0.42547132]
[1757117783178,0.0001,110770.0,110760.0,1.01087961]
[1757117783582,0.0001,110770.0,110760.0,1.82859961]
[1757117784488,0.0001,110770.0,110760.0,1.91887781]
[1757117788886,0.0001,110770.0,110760.0,1.10115781]
[1757117789193,0.0001,110770.0,110760.0,1.91883781]
[1757117790297,0.0001,110770.0,110760.0,1.82855961]
[1757117790488,0.0001,110770.0,110760.0,1.01087961]
[1757117790791,0.38242,110770.0,110760.0,0.42547132]
[1757117799298,0.38242,110770.0,110760.0,0.37519829]
[1757117802405,1.79069829,110770.0,110760.0,0.003]
[1757117802794,1.81459349,110770.0,110750.0,0.00023524]
[1757117803097,0.97122829,110760.0,110750.0,0.00023524]
[1757117803301,0.99512349,110760.0,110750.0,0.00013524]
[1757117803803,1.33053178,110760.0,110750.0,0.00013524]
[1757117805895,1.33153178,110760.0,110750.0,0.00013524]
[1757117806500,1.33253178,110760.0,110750.0,0.00013524]
[1757117809898,0.36750829,110750.0,110740.0,0.0001]
[1757117810099,1.54606829,110750.0,110740.0,0.05027303]
[1757117810804,1.79606829,110750.0,110730.0,0.0001]
[1757117811003,1.79606829,110750.0,110730.0,0.05037303]
[1757117811004,0.71883829,110740.0,110730.0,0.05037303]
[1757117811200,0.71883829,110740.0,110730.0,0.05027303]
[1757117812005,1.53663829,110740.0,110730.0,0.05027303]
[1757117813004,1.53763829,110740.0,110730.0,0.05027303]
[1757117813705,1.61060913,110740.0,110730.0,0.05027303]
[1757117815506,0.79280913,110740.0,110730.0,0.05027303]
[1757117815804,1.61068913,110740.0,110730.0,0.05027303]
[1757117819510,1.27528084,110740.0,110730.0,0.05027303]
[1757117820505,0.75574377,110740.0,110730.0,0.05027303]
[1757117820704,1.57362377,110740.0,110730.0,0.05027303]
[1757117822110,0.75574377,110740.0,110730.0,0.05027303]
[1757117822310,1.59739211,110740.0,110730.0,0.05027303]
[1757117823610,0.77947211,110740.0,110730.0,0.05027303]
[1757117824108,1.59739211,110740.0,110730.0,0.05027303]
[1757117826910,0.77947211,110740.0,110730.0,0.05027303]
[1757117827209,1.59739211,110740.0,110730.0,0.05027303]
[1757117827813,0.77947211,110740.0,110730.0,0.05027303]
[1757117828203,0.48112918,110740.0,110730.0,0.07329303]
[1757117828507,1.29904918,110740.0,110730.0,0.63563596]
[1757117828706,1.27532084,110740.0,110730.0,0.63563596]
[1757117829812,1.27532084,110740.0,110730.0,0.33729303]
[1757117830704,0.45740084,110740.0,110730.0,0.33729303]
[1757117831007,1.17972,110740.0,110730.0,0.63563596]
[1757117831210,1.20235,110740.0,110730.0,0.63563596]
[1757117835810,1.20235,110740.0,110730.0,0.38563596]
[1757117836303,1.20251,110740.0,110730.0,0.38563596]
[1757117838711,1.20251,110740.0,110730.0,0.08729303]
[1757117838913,1.20251,110740.0,110730.0,0.38563596]
[1757117839115,1.20251,110740.0,110730.0,0.08729303]
[1757117839317,1.20251,110740.0,110730.0,0.38563596]
[1757117841017,1.20251,110740.0,110730.0,0.08729303]
[1757117841216,1.20251,110740.0,110730.0,0.38563596]
[1757117841614,1.82748269,110740.0,110730.0,0.05027303]
[1757117841810,1.85129796,110740.0,110730.0,0.05027303]
[1757117842216,1.85129796,110740.0,110720.0,0.0141]
[1757117842410,0.38376,110730.0,110720.0,0.08663303]
[1757117842610,0.40757527,110730.0,110720.0,0.08653303]
[1757117843117,0.41659697,110730.0,110720.0,0.08653303]
[1757117844620,0.41659697,110730.0,110720.0,0.08753303]
[1757117846218,0.3927817,110730.0,110720.0,0.08753303]
[1757117846419,0.41657657,110730.0,110720.0,0.08753303]
[1757117846619,0.3927817,110730.0,110720.0,0.08753303]
[1757117848020,0.41657575,110730.0,110720.0,0.08753303]
[1757117848414,0.42180575,110730.0,110720.0,0.05127303]
[1757117849018,0.42180575,110730.0,110720.0,0.07353303]
[1757117849222,0.3980117,110730.0,110720.0,0.07353303]
[1757117850418,0.69635463,110730.0,110720.0,0.05127303]
[1757117850730,0.42180496,110730.0,110720.0,0.05127303]
[1757117851823,0.42380496,110730.0,110720.0,0.05127303]
[1757117852323,0.67380496,110730.0,110720.0,0.05127303]
[1757117852619,0.97214789,110730.0,110720.0,0.05127303]
[1757117853218,0.00947,110720.0,110710.0,0.0001]
[1757117853417,1.23550326,110720.0,110710.0,0.05027303]
[1757117854214,1.21171,110720.0,110710.0,0.05027303]
[1757117854523,1.21271,110720.0,110710.0,0.05027303]
[1757117855024,1.23749158,110720.0,110710.0,0.05027303]
[1757117855213,1.21371,110720.0,110710.0,0.05027303]
[1757117857827,1.21355,110720.0,110710.0,0.05027303]
[1757117859328,1.21355,110720.0,110700.0,0.01377]
[1757117859532,0.38376,110710.0,110700.0,0.03603]
[1757117859828,0.38376,110710.0,110700.0,0.03593]
[1757117860023,0.38376,110710.0,110700.0,0.08620303]
[1757117861528,0.74456,110710.0,110700.0,0.08720303]
[1757117863222,1.56276,110710.0,110700.0,0.08720303]
[1757117868437,0.74456,110710.0,110700.0,0.08720303]
[1757117868634,1.56264,110710.0,110700.0,0.08720303]
[1757117869130,0.74456,110710.0,110700.0,0.08720303]
[1757117869328,1.56264,110710.0,110700.0,0.38554596]
[1757117869528,0.3608,110720.0,110700.0,0.63554596]
[1757117869730,0.38325,110720.0,110710.0,0.33388293]
[1757117869930,1.20185,110720.0,110710.0,0.38415596]
[1757117870635,1.20285,110720.0,110710.0,0.38415596]
[1757117870839,1.20385,110720.0,110710.0,0.38415596]
[1757117871836,0.38525,110720.0,110710.0,0.38415596]
[1757117872037,0.3628,110720.0,110710.0,0.38415596]
[1757117872236,0.38525,110720.0,110710.0,0.38415596]
[1757117872436,0.38525,110720.0,110710.0,0.08581303]
[1757117872638,0.38525,110720.0,110710.0,0.38415596]
[1757117875832,0.3628,110720.0,110710.0,0.38415596]
[1757117876830,0.38525,110720.0,110710.0,0.08581303]
[1757117877332,0.38525,110720.0,110710.0,0.38415596]
[1757117877737,0.38525,110720.0,110710.0,0.08581303]
[1757117879532,0.38525,110720.0,110710.0,0.38415596]
[1757117881442,0.38525,110720.0,110710.0,0.4214866]
[1757117883345,0.38525,110720.0,110710.0,0.08581303]
[1757117883534,0.38525,110720.0,110710.0,0.4214866]
[1757117883836,0.38525,110720.0,110710.0,0.08581303]
[1757117884040,0.72092357,110720.0,110710.0,0.4214866]
[1757117884242,0.38525,110720.0,110710.0,0.4214866]
[1757117887846,0.38525,110720.0,110710.0,0.08581303]
[1757117888042,0.38525,110720.0,110710.0,0.4214866]
[1757117889344,0.38525,110720.0,110710.0,0.08581303]
[1757117889545,0.38525,110720.0,110710.0,0.4214866]
[1757117892650,0.38525,110720.0,110710.0,0.08581303]
[1757117892850,0.72092357,110720.0,110710.0,0.4214866]
[1757117893251,0.38525,110720.0,110710.0,0.4214866]
[1757117893551,1.20733,110720.0,110710.0,0.4214866]
[1757117898651,1.20733,110720.0,110710.0,0.08581303]
[1757117898856,1.20733,110720.0,110710.0,0.4214866]
[1757117903253,1.20801,110720.0,110710.0,0.4214866]
[1757117907256,1.20801,110720.0,110710.0,0.08581303]
[1757117907556,1.54368357,110720.0,110710.0,0.4214866]
[1757117910365,1.54368357,110720.0,110710.0,0.08581303]
[1757117910561,1.82677171,110720.0,110700.0,0.43060972]
[1757117910858,0.72367357,110710.0,110700.0,0.05037303]
[1757117911152,0.72367357,110710.0,110700.0,0.05027303]
[1757117912360,0.02547,110700.0,110690.0,0.0001]
[1757117912556,1.54554357,110700.0,110690.0,0.07158303]
[1757117912961,1.54554357,110700.0,110690.0,0.4072566]
[1757117913854,1.54554357,110700.0,110690.0,0.07158303]
[1757117914058,1.54554357,110700.0,110690.0,0.08523303]
[1757117914260,1.54554357,110700.0,110690.0,0.4209066]
[1757117914755,1.54204357,110700.0,110690.0,0.4219066]
[1757117919266,1.54204357,110700.0,110690.0,0.37163357]
[1757117920361,1.54554357,110700.0,110690.0,0.33667357]
[1757117920663,1.54554357,110700.0,110690.0,0.35798357]
[1757117922459,1.54554357,110700.0,110690.0,0.02231]
[1757117922658,1.54554357,110700.0,110690.0,0.35798357]
[1757117922860,1.54554357,110700.0,110690.0,0.001]
[1757117926563,1.54466357,110700.0,110690.0,0.02231]
[1757117930576,0.71844357,110700.0,110690.0,0.03526]
[1757117930775,1.54084357,110700.0,110690.0,0.37093357]
[1757117931574,1.54084357,110700.0,110690.0,0.03526]
[1757117931776,1.54084357,110700.0,110690.0,0.37093357]
[1757117932473,0.38277,110700.0,110690.0,0.37093357]
[1757117932667,1.20497,110700.0,110690.0,0.37093357]
[1757117932868,1.54064357,110700.0,110690.0,0.37093357]
[1757117940192,1.56425649,110700.0,110690.0,0.37093357]
[1757117941093,1.56425649,110700.0,110690.0,0.03526]
[1757117941296,1.56425649,110700.0,110690.0,0.37093357]
[1757117941592,1.22858292,110700.0,110690.0,0.03526]
[1757117943493,1.22882292,110700.0,110690.0,0.3840642]
[1757117943684,1.22874292,110700.0,110690.0,0.3840642]
[1757117944194,1.22874292,110700.0,110690.0,0.08553303]
[1757117945992,1.20513,110700.0,110690.0,0.08553303]
[1757117949099,1.22874764,110700.0,110690.0,0.08553303]
[1757117949703,1.20513,110700.0,110690.0,0.08553303]
[1757117950104,1.22875025,110700.0,110690.0,0.08553303]
[1757117951200,1.20485,110700.0,110690.0,0.3840642]
[1757117951891,1.20485,110700.0,110690.0,0.08553303]
[1757117953595,1.20835,110700.0,110690.0,0.05127303]
[1757117953798,1.23197608,110700.0,110690.0,0.05127303]
[1757117954093,1.23197608,110700.0,110690.0,0.07345303]
[1757117958206,1.22847608,110700.0,110690.0,0.07345303]
[1757117959804,1.22847608,110700.0,110690.0,0.08727303]
[1757117965705,1.22847608,110700.0,110690.0,0.05127303]
[1757117965907,1.22847608,110700.0,110690.0,0.07358303]
[1757117967010,1.58927608,110700.0,110690.0,0.07358303]
[1757117969211,1.58927608,110700.0,110690.0,0.05127303]
[1757117969614,1.58927608,110700.0,110690.0,0.07358303]
[1757117971514,1.58927608,110700.0,110690.0,0.08740303]
[1757117979317,1.58927608,110700.0,110690.0,0.03713]
[1757117980722,1.58927608,110700.0,110690.0,0.001]
[1757117981617,2.13780725,110700.0,110690.0,0.001]
[1757117982525,1.83927608,110700.0,110690.0,0.001]
[1757117982718,2.13780725,110700.0,110680.0,0.00387823]
[1757117982918,0.38234,110690.0,110680.0,0.02618823]
[1757117983221,0.38234,110690.0,110680.0,0.02608823]
[1757117983414,0.38234,110690.0,110680.0,0.07636126]
[1757117983825,0.38234,110690.0,110680.0,0.09018126]
[1757117984327,0.38234,110690.0,110680.0,0.09118126]
[1757117989938,1.20366,110690.0,110680.0,0.09118126]
[1757117994934,0.38234,110690.0,110680.0,0.09118126]
[1757117995140,1.20334,110690.0,110680.0,0.09118126]
[1757117996542,0.38234,110690.0,110680.0,0.09118126]
[1757117996734,1.20326,110690.0,110680.0,0.09118126]
[1757117997945,0.38234,110690.0,110680.0,0.09118126]
[1757117998140,1.20318,110690.0,110680.0,0.09118126]
[1757117999641,1.20318,110690.0,110680.0,0.38971243]
[1757118002445,1.20318,110690.0,110680.0,0.09118126]
[1757118003543,1.20318,110690.0,110680.0,0.4270533]
[1757118003544,1.53905204,110690.0,110680.0,0.4270533]
[1757118007252,0.71821204,110690.0,110680.0,0.4270533]
[1757118007454,1.53941204,110690.0,110680.0,0.4270533]
[1757118008853,1.53941204,110690.0,110680.0,0.09118126]
[1757118009052,1.53941204,110690.0,110680.0,0.4270533]
[1757118015258,0.38234,110690.0,110680.0,0.4270533]
[1757118015453,1.53909204,110690.0,110680.0,0.4270533]
[1757118020658,1.53909204,110690.0,110680.0,0.09118126]
[1757118020848,1.53909204,110690.0,110680.0,0.4270533]
[1757118021255,1.54432204,110690.0,110680.0,0.05505126]
[1757118021559,1.56797927,110690.0,110680.0,0.05505126]
[1757118022258,1.81797927,110690.0,110680.0,0.05505126]
[1757118023159,1.81797927,110690.0,110680.0,0.00477823]
[1757118024563,1.81897927,110690.0,110680.0,0.00377823]
[1757118025362,0.02733,110680.0,110670.0,0.0001]
[1757118025557,0.72400204,110680.0,110670.0,0.05027303]
[1757118025860,0.74761562,110680.0,110670.0,0.05027303]
[1757118026261,0.72400204,110680.0,110670.0,0.05027303]
[1757118026565,0.74860881,110680.0,110670.0,0.05027303]
[1757118027362,0.72500204,110680.0,110670.0,0.05027303]
[1757118027960,0.74860244,110680.0,110670.0,0.05027303]
[1757118029256,0.72500204,110680.0,110670.0,0.05027303]
[1757118029656,0.7963357,110680.0,110670.0,0.05027303]
[1757118030161,1.6166557,110680.0,110670.0,0.05027303]
[1757118030361,1.64024187,110680.0,110670.0,0.05027303]
[1757118033865,1.6166557,110680.0,110670.0,0.05027303]
[1757118036670,0.7963357,110680.0,110670.0,0.05027303]
[1757118036870,1.6165357,110680.0,110670.0,0.05027303]
[1757118038175,1.64010919,110680.0,110670.0,0.05027303]
[1757118039372,1.64010919,110680.0,110660.0,0.0001]
[1757118039573,0.71831204,110670.0,110660.0,0.02227]
[1757118039770,0.71831204,110670.0,110660.0,0.02217]
[1757118039970,0.71831204,110670.0,110660.0,0.07244303]
[1757118040473,1.07911204,110670.0,110660.0,0.07244303]
[1757118042573,1.07911204,110670.0,110660.0,0.07344303]
[1757118043274,1.08798613,110670.0,110660.0,0.07344303]
[1757118044074,1.08798613,110670.0,110660.0,0.08610303]
[1757118046077,1.90834613,110670.0,110660.0,0.08610303]
[1757118047665,0.75211409,110670.0,110660.0,0.42197507]
[1757118047972,1.57239409,110670.0,110660.0,0.42197507]
[1757118049268,0.75211409,110670.0,110660.0,0.42197507]
[1757118049463,1.57263409,110670.0,110660.0,0.42197507]
[1757118053475,1.90850613,110670.0,110660.0,0.42197507]
[1757118061097,1.90850613,110670.0,110660.0,0.08610303]
[1757118061397,1.90850613,110670.0,110660.0,0.42197507]
[1757118061593,1.90794613,110670.0,110660.0,0.42197507]
[1757118063696,0.75211409,110670.0,110660.0,0.42197507]
[1757118063901,1.57203409,110670.0,110660.0,0.42197507]
[1757118065502,1.57203409,110670.0,110660.0,0.38474502]
[1757118068814,2.1477517,110670.0,110660.0,0.05127303]
[1757118069302,2.1477517,110670.0,110660.0,0.001]
[1757118071108,2.1477517,110670.0,110650.0,0.02169806]
[1757118071302,0.68713199,110660.0,110650.0,0.07197109]
[1757118071494,0.68713199,110660.0,110650.0,0.07187109]
[1757118072200,0.93713199,110660.0,110650.0,0.07187109]
[1757118072400,0.96168494,110660.0,110650.0,0.02159806]
[1757118077313,0.96168494,110660.0,110650.0,0.00717806]
[1757118081412,1.48340295,110660.0,110650.0,0.00717806]
[1757118081611,1.78204494,110660.0,110650.0,0.00717806]
[1757118081813,1.48340295,110660.0,110650.0,0.00717806]
[1757118082012,1.78212494,110660.0,110650.0,0.00717806]
[1757118086013,1.78412494,110660.0,110650.0,0.00717806]
[1757118099519,1.53412494,110660.0,110650.0,0.00717806]
[1757118100622,0.71368494,110660.0,110650.0,0.00717806]
[1757118100927,1.53436494,110660.0,110650.0,0.00717806]
[1757118101130,0.40935295,110660.0,110650.0,0.04355806]
[1757118101427,0.70799494,110660.0,110650.0,0.04355806]
[1757118101632,1.52851494,110660.0,110650.0,0.04355806]
[1757118103530,1.52851494,110660.0,110650.0,0.02095806]
[1757118106734,1.52851494,110660.0,110650.0,0.00717806]
[1757118109543,1.22987295,110660.0,110650.0,0.04094806]
[1757118109737,1.52851494,110660.0,110650.0,0.04094806]
[1757118112538,1.52851494,110660.0,110650.0,0.01978806]
[1757118114234,0.70799494,110660.0,110650.0,0.00717806]
[1757118114439,1.52863494,110660.0,110650.0,0.00717806]
[1757118116843,0.70799494,110660.0,110650.0,0.00717806]
[1757118117050,1.52843494,110660.0,110650.0,0.04094806]
[1757118119248,1.52839494,110660.0,110650.0,0.04094806]
[1757118119447,1.52831494,110660.0,110650.0,0.04094806]
[1757118120851,1.52831494,110660.0,110650.0,0.01978806]
[1757118121038,1.52831494,110660.0,110650.0,0.00717806]
[1757118122041,1.52831494,110660.0,110650.0,0.04094806]
[1757118122242,1.52831494,110660.0,110650.0,0.01978806]
[1757118123751,0.70799494,110660.0,110650.0,0.01978806]
[1757118123952,1.52819494,110660.0,110650.0,0.01978806]
[1757118124758,1.52819494,110660.0,110650.0,0.04094806]
[1757118125452,1.56570148,110660.0,110650.0,0.04094806]
[1757118125652,1.56570148,110660.0,110650.0,0.01978806]
[1757118126749,0.40935295,110660.0,110650.0,0.40620962]
[1757118126953,0.40935295,110660.0,110650.0,0.67736962]
[1757118127247,1.206,110660.0,110650.0,0.67736962]
[1757118127853,1.54214853,110660.0,110650.0,0.67736962]
[1757118128354,1.206,110660.0,110650.0,0.67736962]
[1757118129549,0.3858,110660.0,110650.0,0.34122109]
[1757118129758,1.206,110660.0,110650.0,0.67736962]
[1757118131457,0.3858,110660.0,110650.0,0.67736962]
[1757118131661,0.3638,110660.0,110650.0,0.67736962]
[1757118132549,0.3638,110660.0,110650.0,0.34122109]
[1757118132759,0.3638,110660.0,110650.0,0.67736962]
[1757118133759,0.3618,110660.0,110650.0,0.67736962]
[1757118134051,0.3608,110660.0,110650.0,0.67736962]
[1757118138762,0.36980933,110670.0,110650.0,0.67736962]
[1757118138962,1.19008933,110670.0,110660.0,0.37199853]
[1757118139263,1.55088933,110670.0,110660.0,0.42227156]
[1757118139563,1.55076933,110670.0,110660.0,0.42227156]
[1757118139760,0.73060933,110670.0,110660.0,0.75842009]
[1757118140061,0.00113524,110670.0,110660.0,1.09878009]
[1757118140354,0.00213524,110670.0,110660.0,1.09878009]
[1757118140565,0.00113524,110670.0,110660.0,1.09878009]
[1757118140751,0.00213524,110670.0,110660.0,1.09878009]
[1757118144960,0.00113524,110670.0,110660.0,1.09878009]
[1757118145160,0.00113524,110670.0,110660.0,1.91878009]
[1757118145357,0.00213524,110670.0,110660.0,1.91878009]
[1757118146163,0.00113524,110670.0,110660.0,1.91978009]
[1757118146561,0.00013524,110670.0,110660.0,1.92078009]
[1757118152465,0.00013524,110670.0,110660.0,1.67078009]
[1757118157372,0.3608,110690.0,110680.0,0.01303]
[1757118157680,0.3608,110690.0,110680.0,0.37199853]
[1757118157975,0.3608,110690.0,110680.0,0.42227156]
[1757118159476,0.3628,110690.0,110680.0,0.37199853]
[1757118160774,0.3618,110690.0,110680.0,0.37199853]
[1757118161171,0.36989332,110690.0,110680.0,0.37199853]
[1757118162476,0.37011332,110690.0,110680.0,0.37199853]
[1757118163677,0.36989332,110690.0,110680.0,0.37199853]
[1757118164379,0.37011332,110690.0,110680.0,0.37199853]
[1757118174178,0.3608,110690.0,110680.0,0.42227156]
[1757118174372,1.18074,110700.0,110690.0,0.03607]
[1757118174576,1.18074,110700.0,110690.0,0.37221853]
[1757118175579,1.19089195,110700.0,110690.0,0.37221853]
[1757118176476,1.19189195,110700.0,110690.0,0.37221853]
[1757118185584,1.19189195,110700.0,110690.0,0.33453796]
[1757118188994,1.19189195,110700.0,110690.0,0.03607]
[1757118189193,1.19189195,110700.0,110690.0,0.33453796]
[1757118192996,1.19177195,110700.0,110690.0,0.33453796]
[1757118194700,1.19177195,110700.0,110690.0,0.38481099]
[1757118200699,0.3628,110700.0,110690.0,0.63481099]
[1757118200904,0.002,110700.0,110690.0,1.45437099]
[1757118201103,0.002,110700.0,110690.0,1.53553714]
[1757118201296,0.002,110700.0,110690.0,1.45437099]
[1757118202301,0.001,110700.0,110690.0,1.45537099]
[1757118202502,0.001,110700.0,110690.0,1.98767274]
[1757118202905,0.001,110700.0,110690.0,1.99067274]
[1757118204102,1.18955961,110720.0,110710.0,0.03551]
[1757118204305,1.18955961,110720.0,110710.0,0.33397796]
[1757118204497,1.18955961,110720.0,110710.0,0.38425099]
[1757118205505,1.18955961,110720.0,110710.0,0.38525099]
[1757118206005,1.19055961,110720.0,110710.0,0.38525099]
[1757118212708,1.19055961,110720.0,110710.0,0.08678303]
[1757118212900,1.19055961,110720.0,110710.0,0.38525099]
[1757118219314,1.19055961,110720.0,110710.0,0.33497796]
[1757118223814,1.19055961,110720.0,110710.0,0.03651]
[1757118224317,1.19055961,110720.0,110710.0,0.33497796]
[1757118225007,1.73902757,110720.0,110710.0,0.03651]
[1757118225417,0.91946757,110720.0,110710.0,0.03651]
[1757118225612,1.73870757,110720.0,110710.0,0.03651]
[1757118225811,1.44023961,110720.0,110710.0,0.03651]
[1757118233814,1.48870757,110720.0,110710.0,0.05127303]
[1757118234013,1.76239377,110720.0,110710.0,0.00086]
[1757118235024,1.46392581,110720.0,110710.0,0.00086]
[1757118235226,1.76239377,110720.0,110710.0,0.00086]
[1757118242631,2.06086173,110720.0,110710.0,0.00086]
[1757118244130,1.76239377,110720.0,110710.0,0.00086]
[1757118245733,0.94315377,110720.0,110710.0,0.00086]
[1757118245933,1.76239377,110720.0,110710.0,0.00086]
[1757118246937,2.06086173,110720.0,110700.0,0.0001]
[1757118247128,0.65926796,110710.0,110700.0,0.05037303]
[1757118247435,1.53962194,110710.0,110700.0,0.05027303]
[1757118248340,1.54162194,110710.0,110700.0,0.05027303]
[1757118249039,1.54262194,110710.0,110700.0,0.05027303]
[1757118249739,1.2067262,110710.0,110700.0,0.05027303]
[1757118249940,1.54262194,110710.0,110700.0,0.05027303]
[1757118250438,1.54222789,110710.0,110700.0,0.05027303]
[1757118254342,0.72298789,110710.0,110700.0,0.05027303]
[1757118254532,1.54226789,110710.0,110700.0,0.07280303]
[1757118254735,1.20637215,110710.0,110700.0,0.08600303]
[1757118254936,1.54226789,110710.0,110700.0,0.06347303]
[1757118255646,1.54226789,110710.0,110700.0,0.05027303]
[1757118268855,0.38709215,110710.0,110700.0,0.05027303]
[1757118269046,1.54222789,110710.0,110700.0,0.05027303]
[1757118270153,0.72298789,110710.0,110700.0,0.05027303]
[1757118270354,1.54222789,110710.0,110700.0,0.05027303]
[1757118274559,0.38709215,110710.0,110700.0,0.42151877]
[1757118274761,1.54218789,110710.0,110700.0,0.42151877]
[1757118274951,1.54218789,110710.0,110700.0,0.08562303]
[1757118276357,1.54218789,110710.0,110700.0,0.06324303]
[1757118277757,1.20629215,110710.0,110700.0,0.08562303]
[1757118278056,1.54218789,110710.0,110700.0,0.06324303]
[1757118278257,1.20629215,110710.0,110700.0,0.08562303]
[1757118278458,1.54218789,110710.0,110700.0,0.08562303]
[1757118278652,1.54218789,110710.0,110700.0,0.06324303]
[1757118278855,1.54218789,110710.0,110700.0,0.05027303]
[1757118279253,1.54218789,110710.0,110690.0,0.34919574]
[1757118279254,1.54218789,110710.0,110690.0,0.37157574]
[1757118279460,0.69669574,110700.0,110690.0,0.37157574]
[1757118279650,0.38409215,110700.0,110690.0,0.37147574]
[1757118279847,0.71998789,110700.0,110690.0,0.42174877]
[1757118280257,0.38409215,110700.0,110690.0,0.42174877]
[1757118280559,1.20465215,110700.0,110690.0,0.67174877]
[1757118280759,1.18136,110700.0,110690.0,0.67174877]
[1757118280954,0.3608,110700.0,110690.0,0.67174877]
[1757118281150,1.18136,110700.0,110690.0,0.67174877]
[1757118281461,1.18136,110700.0,110690.0,0.67274877]
[1757118285758,0.3608,110700.0,110690.0,0.67274877]
[1757118285950,0.3608,110700.0,110690.0,1.00864451]
[1757118286360,0.3608,110700.0,110690.0,0.67274877]
[1757118290562,0.3608,110700.0,110690.0,1.09898051]
[1757118290767,0.3608,110710.0,110700.0,0.03501]
[1757118290961,0.3608,110710.0,110700.0,0.70680148]
[1757118291161,0.3608,110710.0,110700.0,0.08528303]
[1757118291363,0.3608,110710.0,110700.0,0.75707451]
[1757118291565,0.3608,110710.0,110700.0,0.08528303]
[1757118291769,0.3608,110710.0,110700.0,0.42117877]
[1757118292167,0.3608,110710.0,110700.0,0.08528303]
[1757118292368,1.1832,110720.0,110700.0,0.75707451]
[1757118292667,1.1832,110720.0,110710.0,0.37090574]
[1757118292867,1.51909574,110720.0,110710.0,0.08528303]
[1757118293165,1.52068574,110720.0,110710.0,0.42017877]
[1757118293368,1.18479,110720.0,110710.0,0.42017877]
[1757118293558,1.18803,110720.0,110710.0,0.42017877]
[1757118293758,1.18903,110720.0,110710.0,0.42017877]
[1757118294263,1.18903,110720.0,110710.0,0.08428303]
[1757118294567,1.18903,110720.0,110710.0,0.42017877]
[1757118296169,1.52492574,110720.0,110710.0,0.42017877]
[1757118296369,1.18903,110720.0,110710.0,0.42017877]
[1757118296568,1.52492574,110720.0,110710.0,0.42017877]
[1757118296863,0.36339,110720.0,110710.0,0.08428303]
[1757118297065,1.19131,110720.0,110710.0,0.42017877]
[1757118300473,1.19131,110720.0,110710.0,0.08428303]
[1757118300674,1.19131,110720.0,110710.0,0.42017877]
[1757118301076,1.52720574,110720.0,110710.0,0.42017877]
[1757118301270,1.19131,110720.0,110710.0,0.42017877]
[1757118303178,0.36339,110720.0,110710.0,0.42017877]
[1757118303373,1.19092,110720.0,110710.0,0.42017877]
[1757118303578,1.19251,110720.0,110710.0,0.42017877]
[1757118305181,1.19251,110720.0,110710.0,0.08428303]
[1757118305381,1.19251,110720.0,110710.0,0.42017877]
[1757118306082,0.3618,110720.0,110710.0,0.51049857]
[1757118306282,0.001,110720.0,110710.0,0.51049857]
[1757118307984,0.001,110720.0,110710.0,0.51149857]
[1757118308380,1.18952,110730.0,110710.0,0.51149857]
[1757118308585,1.19111,110730.0,110720.0,0.03501]
[1757118308782,1.19111,110730.0,110720.0,0.08528303]
[1757118309582,1.19211,110730.0,110720.0,0.38359965]
[1757118309978,1.19111,110730.0,110720.0,0.38359965]
[1757118310282,1.19211,110730.0,110720.0,0.38359965]
[1757118311884,1.19211,110730.0,110720.0,0.08528303]
[1757118313088,1.19211,110730.0,110720.0,0.38359965]
[1757118313888,1.19211,110730.0,110720.0,0.08528303]
[1757118314078,1.19211,110730.0,110720.0,0.38359965]
[1757118319388,1.19211,110730.0,110720.0,0.08528303]
[1757118319590,1.19211,110730.0,110720.0,0.38359965]